[Event "9th Amsterdam Science Park B 2019"]
[Site "Amsterdam"]
[Date "2019.07.06"]
[Round "1.1"]
[White "Gutmann, Alois"]
[Black "Michel, Steve"]
[Result "1/2-1/2"]
[ECO "A00"]
[WhiteElo "2036"]
[BlackElo "1916"]
[Annotator "NA"]
[PlyCount "89"]
[EventDate "2019.07.06"]
[EventType "swiss"]
[EventCountry "NED"]
[SourceTitle "playchess.com"]
[Source "ChessBase"]
[SourceQuality "1"]
[TimeControl "40/5400+30:1800+30"]

1. Nc3 {[%emt 0:00:00]} c5 {[%emt 0:01:29]} 2. Nf3 {[%emt 0:00:00]} Nc6 {[%emt 0:00:48]} 3. d4 {[%emt 0:00:01]} cxd4 {[%emt 0:01:16]} 4. Nxd4 {[%emt 0:00:06]} d5 {[%emt 0:01:26]} 5. Bf4 {[%emt 0:14:10]} Nf6 {[%emt 0:10:59]} 6. e3 {[%emt 0:10:27]} g6 {[%emt 0:05:16]} 7. Be2 {[%emt 0:09:45]} Bg7 {[%emt 0:00:24]} 8. h4 {[%emt 0:02:03]} h5 {[%emt 0:01:02]} 9. O-O {[%emt 0:07:59]} O-O {[%emt 0:01:53]} 10. Nxc6 {[%emt 0:02:54]} bxc6 {[%emt 0:00:07]} 11. Be5 {[%emt 0:00:30]} Nd7 {[%emt 0:05:21]} 12. Bxg7 {[%emt 0:04:19]} Kxg7 {[%emt 0:00:29]} 13. e4 {[%emt 0:00:11]} e6 {[%emt 0:00:31]} 14. g3 {[%emt 0:03:16]} Qb6 {[%emt 0:00:39]} 15. Rb1 {[%emt 0:06:30]} Ba6 {[%emt 0:00:40]} 16. Bxa6 {[%emt 0:04:51]} Qxa6 {[%emt 0:00:06]} 17. exd5 {[%emt 0:01:08]} cxd5 {[%emt 0:01:59]} 18. Qd4+ {[%emt 0:00:19]} Kg8 {[%emt 0:02:25]} 19. Qa4 {[%emt 0:06:26]} Qb7 {[%emt 0:04:39]} 20. Rfd1 {[%emt 0:11:46]} Rfd8 {[%emt 0:03:35]} 21. Qa3 {[%emt 0:02:52]} Ne5 {[%emt 0:01:36]} 22. Na4 {[%emt 0:03:19]} Qc6 {[%emt 0:03:08]} 23. Qc3 {[%emt 0:04:46]} Qxa4 {[%emt 0:05:00]} 24. Qxe5 {[%emt 0:00:02]} Qxc2 {[%emt 0:01:18]} 25. Rbc1 {[%emt 0:00:15]} Qf5 {[%emt 0:00:50]} 26. Qxf5 {[%emt 0:02:15]} gxf5 {[%emt 0:00:07]} 27. Rc7 {[%emt 0:00:13]} Kf8 {[%emt 0:06:51]} 28. Kf1 {[%emt 0:00:15]} Ke8 {[%emt 0:00:15]} 29. Rdc1 {[%emt 0:00:23]} Rd7 {[%emt 0:03:33]} 30. R7c6 {[%emt 0:01:15]} Rb8 {[%emt 0:01:41]} 31. b3 {[%emt 0:00:18]} Rb4 {[%emt 0:14:47]} 32. Ke2 {[%emt 0:00:40]} f4 {[%emt 0:00:53]} 33. Rc8+ {[%emt 0:00:23]} Ke7 {[%emt 0:00:21]} 34. g4 {[%emt 0:02:24]} f3+ {[%emt 0:02:08]} 35. Kxf3 {[%emt 0:00:25]} Rxg4 {[%emt 0:00:06]} 36. Rh1 {[%emt 0:00:41]} e5 {[%emt 0:00:20]} 37. Rh8 {[%emt 0:00:38]} Rf4+ {[%emt 0:00:07]} 38. Kg3 {[%emt 0:00:31]} Rf5 {[%emt 0:00:05]} 39. Rc8 {[%emt 0:00:41]} e4 {[%emt 0:02:06]} 40. Rd1 {[%emt 0:00:25]} Ke6 {[%emt 0:00:57]} 41. Re8+ {[%emt 0:02:36]} Kf6 {[%emt 0:04:44]} 42. Rxe4 {[%emt 0:00:40]} Rc7 {[%emt 0:10:37]} 43. Rf4 {[%emt 0:10:32]} Rxf4 {[%emt 0:03:31]} 44. Kxf4 {[%emt 0:00:05]} Rc2 {[%emt 0:02:13]} 45. Rxd5 1/2-1/2

[Event "9th Amsterdam Science Park B 2019"]
[Site "Amsterdam"]
[Date "2019.07.06"]
[Round "1.2"]
[White "Vlugt, Frans"]
[Black "Roemersma, Aad"]
[Result "1/2-1/2"]
[ECO "B21"]
[WhiteElo "1915"]
[BlackElo "2029"]
[Annotator "NA"]
[PlyCount "105"]
[EventDate "2019.07.06"]
[EventType "swiss"]
[EventCountry "NED"]
[SourceTitle "playchess.com"]
[Source "ChessBase"]
[SourceQuality "1"]
[TimeControl "40/5400+30:1800+30"]

1. e4 {[%emt 0:00:00]} c5 {[%emt 0:00:00]} 2. f4 {[%emt 0:00:00]} e6 {[%emt 0:00:00]} 3. Nf3 {[%emt 0:00:00]} d5 {[%emt 0:00:00]} 4. e5 {[%emt 0:00:02]} Nc6 {[%emt 0:00:48]} 5. c3 {[%emt 0:01:16]} d4 {[%emt 0:08:09]} 6. d3 {[%emt 0:06:07]} Nge7 {[%emt 0:04:34]} 7. Na3 {[%emt 0:11:48]} h5 {[%emt 0:05:07]} 8. g3 {[%emt 0:02:31]} Nf5 {[%emt 0:03:14]} 9. Qe2 {[%emt 0:02:00]} b6 {[%emt 0:04:07]} 10. c4 {[%emt 0:16:27]} Bb7 {[%emt 0:01:34]} 11. Bh3 {[%emt 0:04:52]} Qd7 {[%emt 0:03:39]} 12. Bxf5 {[%emt 0:05:11]} exf5 {[%emt 0:00:06]} 13. O-O {[%emt 0:05:48]} Be7 {[%emt 0:02:18]} 14. h4 {[%emt 0:04:41]} O-O-O {[%emt 0:00:25]} 15. Nc2 {[%emt 0:02:32]} Rde8 {[%emt 0:04:05]} 16. Qf2 {[%emt 0:02:17]} f6 {[%emt 0:05:36]} 17. Bd2 {[%emt 0:06:42]} fxe5 {[%emt 0:04:35]} 18. fxe5 {[%emt 0:00:06]} Bd8 {[%emt 0:03:37]} 19. Rae1 {[%emt 0:06:16]} g6 {[%emt 0:01:13]} 20. b4 {[%emt 0:03:53]} Bc7 {[%emt 0:00:28]} 21. Bf4 {[%emt 0:02:12]} Nd8 {[%emt 0:00:47]} 22. Ng5 {[%emt 0:04:53]} Qc6 {[%emt 0:06:52]} 23. Kh2 {[%emt 0:00:12]} Ne6 {[%emt 0:01:02]} 24. b5 {[%emt 0:00:41]} Qd7 {[%emt 0:00:09]} 25. Nh3 {[%emt 0:01:12]} Rhg8 {[%emt 0:02:33]} 26. Re2 {[%emt 0:00:22]} Bd8 {[%emt 0:00:31]} 27. Ng5 {[%emt 0:03:44]} Nxg5 {[%emt 0:03:06]} 28. hxg5 {[%emt 0:00:52]} Rh8 {[%emt 0:02:38]} 29. Ne1 {[%emt 0:01:39]} Bc7 {[%emt 0:01:27]} 30. Nf3 {[%emt 0:00:48]} Bxf3 {[%emt 0:02:08]} 31. Qxf3 {[%emt 0:00:03]} Kb8 {[%emt 0:00:13]} 32. e6 {[%emt 0:01:50]} Rxe6 {[%emt 0:02:16]} 33. Bxc7+ {[%emt 0:02:48]} Kxc7 {[%emt 0:00:05]} 34. Qf4+ {[%emt 0:00:57]} Kc8 {[%emt 0:00:58]} 35. Rxe6 {[%emt 0:00:33]} Qxe6 {[%emt 0:00:04]} 36. Qf3 {[%emt 0:00:06]} Kc7 {[%emt 0:01:21]} 37. Qf4+ {[%emt 0:01:23]} Qd6 {[%emt 0:00:58]} 38. Re1 {[%emt 0:00:30]} Qxf4 {[%emt 0:02:50]} 39. gxf4 {[%emt 0:00:06]} Kd7 {[%emt 0:00:03]} 40. Kh3 {[%emt 0:00:19]} a6 {[%emt 0:00:15]} 41. a4 {[%emt 0:07:25]} axb5 {[%emt 0:00:30]} 42. axb5 {[%emt 0:00:08]} Ra8 {[%emt 0:00:04]} 43. Rf1 {[%emt 0:01:26]} Re8 {[%emt 0:00:58]} 44. Rf3 {[%emt 0:00:58]} Re3 {[%emt 0:00:50]} 45. Kh4 {[%emt 0:00:44]} Kd6 {[%emt 0:01:09]} 46. Rg3 {[%emt 0:00:43]} Re1 {[%emt 0:00:56]} 47. Rf3 {[%emt 0:01:43]} Rg1 {[%emt 0:02:14]} 48. Rg3 {[%emt 0:01:06]} Rh1+ {[%emt 0:03:41]} 49. Rh3 {[%emt 0:00:28]} Rf1 {[%emt 0:00:06]} 50. Rf3 {[%emt 0:00:01]} Re1 {[%emt 0:01:51]} 51. Rg3 {[%emt 0:00:27]} Re2 {[%emt 0:00:47]} 52. Rh3 {[%emt 0:03:00]} Rf2 {[%emt 0:03:14]} 53. Rf3 1/2-1/2

[Event "9th Amsterdam Science Park B 2019"]
[Site "Amsterdam"]
[Date "2019.07.06"]
[Round "1.3"]
[White "De Ruiter, Tom"]
[Black "Schreuder Peters, Misja"]
[Result "1/2-1/2"]
[ECO "B21"]
[WhiteElo "2010"]
[BlackElo "1914"]
[Annotator "NA"]
[PlyCount "30"]
[EventDate "2019.07.06"]
[EventType "swiss"]
[EventCountry "NED"]
[SourceTitle "playchess.com"]
[Source "ChessBase"]
[SourceQuality "1"]
[TimeControl "40/5400+30:1800+30"]

1. e4 {[%emt 0:00:00]} c5 {[%emt 0:00:00]} 2. f4 {[%emt 0:00:00]} d5 {[%emt 0:00:00]} 3. Nc3 {[%emt 0:00:02]} e6 {[%emt 0:04:24]} 4. Nf3 {[%emt 0:00:51]} Nf6 {[%emt 0:00:47]} 5. Bb5+ {[%emt 0:01:15]} Bd7 {[%emt 0:01:25]} 6. Qe2 {[%emt 0:04:14]} Nxe4 {[%emt 0:04:26]} 7. Nxe4 {[%emt 0:01:56]} dxe4 {[%emt 0:00:06]} 8. Bxd7+ {[%emt 0:00:11]} Qxd7 {[%emt 0:03:28]} 9. Qxe4 {[%emt 0:00:13]} Qd5 {[%emt 0:00:58]} 10. d3 {[%emt 0:01:32]} Be7 {[%emt 0:02:16]} 11. Bd2 {[%emt 0:07:12]} Bf6 {[%emt 0:05:28]} 12. Qxd5 {[%emt 0:10:55]} exd5 {[%emt 0:00:46]} 13. O-O-O {[%emt 0:00:08]} Nc6 {[%emt 0:04:44]} 14. Rde1+ {[%emt 0:02:20]} Kd7 {[%emt 0:00:36]} 15. g4 {[%emt 0:01:26]} Rae8 {[%emt 0:02:55]} 1/2-1/2

[Event "9th Amsterdam Science Park B 2019"]
[Site "Amsterdam"]
[Date "2019.07.06"]
[Round "1.4"]
[White "Labruyere, Roger"]
[Black "Eveleens, Wim"]
[Result "0-1"]
[ECO "A84"]
[WhiteElo "1897"]
[BlackElo "2005"]
[Annotator "NA"]
[PlyCount "56"]
[EventDate "2019.07.06"]
[EventType "swiss"]
[EventCountry "NED"]
[SourceTitle "playchess.com"]
[Source "ChessBase"]
[SourceQuality "1"]
[TimeControl "40/5400+30:1800+30"]

1. d4 {[%emt 0:00:00]} e6 {[%emt 0:00:00]} 2. c4 {[%emt 0:00:00]} f5 {[%emt 0:00:01]} 3. Nc3 {[%emt 0:00:00]} Nf6 {[%emt 0:00:06]} 4. g3 {[%emt 0:00:02]} d5 {[%emt 0:00:16]} 5. Bg2 {[%emt 0:00:17]} c6 {[%emt 0:00:04]} 6. Nf3 {[%emt 0:01:07]} Bd6 {[%emt 0:00:25]} 7. O-O {[%emt 0:01:17]} O-O {[%emt 0:00:23]} 8. b3 {[%emt 0:01:21]} Nbd7 {[%emt 0:02:19]} 9. Bb2 {[%emt 0:01:42]} Qe7 {[%emt 0:02:12]} 10. e3 {[%emt 0:03:07]} a5 {[%emt 0:02:57]} 11. Re1 {[%emt 0:05:54]} Ne4 {[%emt 0:01:35]} 12. Qc2 {[%emt 0:03:05]} Nxc3 {[%emt 0:09:18]} 13. Bxc3 {[%emt 0:00:51]} b6 {[%emt 0:00:20]} 14. Rad1 {[%emt 0:04:13]} Bb7 {[%emt 0:06:59]} 15. Nd2 {[%emt 0:03:22]} Rac8 {[%emt 0:07:55]} 16. f3 {[%emt 0:04:28]} c5 {[%emt 0:03:44]} 17. e4 {[%emt 0:05:09]} fxe4 {[%emt 0:10:28]} 18. fxe4 {[%emt 0:00:16]} cxd4 {[%emt 0:00:26]} 19. exd5 {[%emt 0:04:28]} dxc3 {[%emt 0:00:52]} 20. Rxe6 {[%emt 0:01:13]} Bc5+ {[%emt 0:03:12]} 21. Kh1 {[%emt 0:04:34]} Qf7 {[%emt 0:10:20]} 22. Qxc3 {[%emt 0:13:36]} Rce8 {[%emt 0:07:20]} 23. Rf1 {[%emt 0:11:21]} Qxf1+ {[%emt 0:08:57]} 24. Nxf1 {[%emt 0:01:02]} Rxe6 {[%emt 0:00:05]} 25. h4 {[%emt 0:00:58]} Re2 {[%emt 0:04:30]} 26. Bh3 {[%emt 0:03:36]} Rff2 {[%emt 0:01:27]} 27. Qc1 {[%emt 0:01:42]} Nf6 {[%emt 0:01:20]} 28. Qd1 {[%emt 0:04:32]} h5 {[%emt 0:07:06]} 0-1

[Event "9th Amsterdam Science Park B 2019"]
[Site "Amsterdam"]
[Date "2019.07.06"]
[Round "1.5"]
[White "Van `t Schip, Richard"]
[Black "Klaren, Duncan"]
[Result "0-1"]
[ECO "B52"]
[WhiteElo "2003"]
[BlackElo "1896"]
[Annotator "NA"]
[PlyCount "68"]
[EventDate "2019.07.06"]
[EventType "swiss"]
[EventCountry "NED"]
[SourceTitle "playchess.com"]
[Source "ChessBase"]
[SourceQuality "1"]
[TimeControl "40/5400+30:1800+30"]

1. e4 {[%emt 0:00:00]} c5 {[%emt 0:00:00]} 2. Nf3 {[%emt 0:00:00]} d6 {[%emt 0:00:00]} 3. Bb5+ {[%emt 0:00:00]} Bd7 {[%emt 0:00:03]} 4. Bxd7+ {[%emt 0:00:12]} Qxd7 {[%emt 0:00:07]} 5. O-O {[%emt 0:00:41]} Nc6 {[%emt 0:00:15]} 6. c3 {[%emt 0:02:59]} Nf6 {[%emt 0:03:11]} 7. Qe2 {[%emt 0:01:30]} e6 {[%emt 0:01:17]} 8. d4 {[%emt 0:10:33]} cxd4 {[%emt 0:00:54]} 9. cxd4 {[%emt 0:00:11]} d5 {[%emt 0:02:27]} 10. e5 {[%emt 0:01:04]} Ne4 {[%emt 0:00:06]} 11. Be3 {[%emt 0:00:05]} Be7 {[%emt 0:05:39]} 12. Ne1 {[%emt 0:01:56]} h6 {[%emt 0:01:39]} 13. f3 {[%emt 0:05:45]} Ng5 {[%emt 0:00:07]} 14. Nc3 {[%emt 0:02:07]} O-O {[%emt 0:04:35]} 15. Nd3 {[%emt 0:15:07]} f6 {[%emt 0:03:01]} 16. f4 {[%emt 0:15:02]} Ne4 {[%emt 0:05:13]} 17. Rad1 {[%emt 0:03:00]} f5 {[%emt 0:04:02]} 18. Nxe4 {[%emt 0:05:32]} dxe4 {[%emt 0:01:00]} 19. Nc5 {[%emt 0:03:11]} Qd5 {[%emt 0:04:54]} 20. b3 {[%emt 0:03:38]} Rfd8 {[%emt 0:02:44]} 21. Nxb7 {[%emt 0:07:40]} Nxd4 {[%emt 0:02:38]} 22. Rxd4 {[%emt 0:00:24]} Qxb7 {[%emt 0:00:09]} 23. Qc4 {[%emt 0:00:22]} Rd5 {[%emt 0:05:37]} 24. g4 {[%emt 0:08:40]} Bc5 {[%emt 0:01:11]} 25. gxf5 {[%emt 0:01:24]} Bxd4 {[%emt 0:00:14]} 26. Bxd4 {[%emt 0:00:07]} Rc8 {[%emt 0:00:10]} 27. Qa4 exf5 {[%emt 0:00:34]} 28. Re1 {[%emt 0:05:44]} Qf7 {[%emt 0:01:20]} 29. Qxa7 {[%emt 0:03:38]} Qg6+ {[%emt 0:01:23]} 30. Kf1 {[%emt 0:00:30]} Qg4 {[%emt 0:02:23]} 31. Be3 {[%emt 0:03:42]} Qf3+ {[%emt 0:00:40]} 32. Bf2 {[%emt 0:00:42]} Qh1+ {[%emt 0:00:53]} 33. Ke2 {[%emt 0:00:00]} Rc2+ {[%emt 0:00:20]} 34. Ke3 {[%emt 0:00:01]} Qf3# {Kd4} 0-1

[Event "9th Amsterdam Science Park B 2019"]
[Site "Amsterdam"]
[Date "2019.07.06"]
[Round "1.6"]
[White "Den Boer, Paul"]
[Black "Van Amerongen-Jansen, Peggy"]
[Result "1/2-1/2"]
[ECO "D15"]
[WhiteElo "1886"]
[BlackElo "2002"]
[Annotator "NA"]
[PlyCount "76"]
[EventDate "2019.07.06"]
[EventType "swiss"]
[EventCountry "NED"]
[SourceTitle "playchess.com"]
[Source "ChessBase"]
[SourceQuality "1"]
[TimeControl "40/5400+30:1800+30"]

1. d4 {[%emt 0:00:00]} d5 {[%emt 0:00:07]} 2. Nf3 {[%emt 0:00:00]} Nf6 {[%emt 0:00:11]} 3. c4 {[%emt 0:00:09]} c6 {[%emt 0:00:17]} 4. Nc3 {[%emt 0:02:05]} a6 {[%emt 0:00:42]} 5. a4 {[%emt 0:09:39]} g6 {[%emt 0:11:00]} 6. cxd5 {[%emt 0:02:12]} cxd5 {[%emt 0:00:44]} 7. Bf4 {[%emt 0:00:55]} Qb6 {[%emt 0:02:00]} 8. a5 {[%emt 0:13:20]} Qd8 {[%emt 0:05:53]} 9. e3 {[%emt 0:00:36]} Nc6 {[%emt 0:00:32]} 10. Ne5 {[%emt 0:01:10]} Nh5 {[%emt 0:13:15]} 11. Nxc6 {[%emt 0:14:53]} bxc6 {[%emt 0:00:13]} 12. Bg5 {[%emt 0:04:35]} Rb8 {[%emt 0:01:27]} 13. Qd2 {[%emt 0:01:52]} Qd6 {[%emt 0:03:50]} 14. Be2 {[%emt 0:01:59]} Bg7 {[%emt 0:01:57]} 15. Bxh5 {[%emt 0:08:01]} gxh5 {[%emt 0:00:49]} 16. Bf4 {[%emt 0:00:14]} e5 {[%emt 0:01:43]} 17. Bxe5 {[%emt 0:03:04]} Bxe5 {[%emt 0:00:08]} 18. dxe5 {[%emt 0:00:04]} Qxe5 {[%emt 0:01:18]} 19. Na4 {[%emt 0:03:52]} Qg7 {[%emt 0:04:55]} 20. Qd4 {[%emt 0:07:40]} Qxd4 {[%emt 0:01:44]} 21. exd4 {[%emt 0:00:21]} Rb4 {[%emt 0:06:45]} 22. Nb6 {[%emt 0:00:50]} Kd8 {[%emt 0:02:56]} 23. O-O-O {[%emt 0:01:17]} Rg8 {[%emt 0:06:48]} 24. g3 {[%emt 0:00:58]} Rb5 {[%emt 0:05:19]} 25. Rhe1 {[%emt 0:01:28]} Be6 {[%emt 0:02:15]} 26. Na4 {[%emt 0:06:41]} Rxa5 {[%emt 0:03:15]} 27. Nc5 {[%emt 0:00:04]} Bc8 {[%emt 0:01:05]} 28. Kd2 {[%emt 0:02:32]} Rb5 {[%emt 0:00:56]} 29. Kc3 {[%emt 0:02:53]} a5 {[%emt 0:00:36]} 30. Re5 {[%emt 0:00:40]} f6 {[%emt 0:06:27]} 31. Re3 {[%emt 0:01:09]} Re8 {[%emt 0:00:51]} 32. Rde1 {[%emt 0:00:19]} Rxe3+ {[%emt 0:00:10]} 33. Rxe3 {[%emt 0:00:08]} Bg4 {[%emt 0:01:39]} 34. f3 {[%emt 0:01:54]} Bf5 {[%emt 0:00:31]} 35. Ne6+ {[%emt 0:02:24]} Kd7 {[%emt 0:00:29]} 36. Nc5+ {[%emt 0:00:38]} Kd8 {[%emt 0:02:48]} 37. Ne6+ {[%emt 0:00:06]} Kd7 {[%emt 0:00:58]} 38. Nc5+ {[%emt 0:00:06]} Kd8 1/2-1/2

[Event "9th Amsterdam Science Park B 2019"]
[Site "Amsterdam"]
[Date "2019.07.06"]
[Round "1.7"]
[White "Veelenturf, Wim"]
[Black "Zegstroo, Martin"]
[Result "0-1"]
[ECO "C55"]
[WhiteElo "1626"]
[BlackElo "1798"]
[Annotator "NA"]
[PlyCount "126"]
[EventDate "2019.07.06"]
[EventType "swiss"]
[EventCountry "NED"]
[SourceTitle "playchess.com"]
[Source "ChessBase"]
[SourceQuality "1"]
[TimeControl "40/5400+30:1800+30"]

1. e4 {[%emt 0:00:00]} e5 {[%emt 0:00:00]} 2. Bc4 {[%emt 0:00:05]} Nc6 {[%emt 0:00:12]} 3. Nf3 {[%emt 0:00:50]} Nf6 {[%emt 0:00:39]} 4. d3 {[%emt 0:00:29]} Be7 {[%emt 0:00:13]} 5. O-O {[%emt 0:00:35]} d6 {[%emt 0:00:12]} 6. c3 {[%emt 0:02:22]} O-O {[%emt 0:00:49]} 7. b4 {[%emt 0:02:53]} Be6 {[%emt 0:08:41]} 8. Bb3 {[%emt 0:02:22]} Bxb3 {[%emt 0:00:12]} 9. axb3 {[%emt 0:02:15]} a6 {[%emt 0:02:11]} 10. Re1 {[%emt 0:04:58]} Nd7 {[%emt 0:03:53]} 11. Nbd2 {[%emt 0:02:04]} Bf6 {[%emt 0:01:53]} 12. Rb1 {[%emt 0:05:06]} Re8 {[%emt 0:02:10]} 13. Nc4 {[%emt 0:06:18]} Nf8 {[%emt 0:12:37]} 14. Ne3 {[%emt 0:01:41]} g6 {[%emt 0:00:55]} 15. Ng4 {[%emt 0:02:06]} Ne6 {[%emt 0:05:32]} 16. Nxf6+ {[%emt 0:03:29]} Qxf6 {[%emt 0:00:09]} 17. g3 {[%emt 0:01:03]} g5 {[%emt 0:03:42]} 18. Kg2 {[%emt 0:10:29]} h6 {[%emt 0:06:20]} 19. Ng1 {[%emt 0:03:40]} Qg6 {[%emt 0:00:33]} 20. Qg4 {[%emt 0:03:24]} Ne7 {[%emt 0:07:32]} 21. Rb2 {[%emt 0:05:34]} h5 {[%emt 0:03:55]} 22. Qe2 {[%emt 0:01:40]} f5 {[%emt 0:00:21]} 23. exf5 {[%emt 0:01:54]} Nxf5 {[%emt 0:01:00]} 24. Qe4 {[%emt 0:04:03]} c6 {[%emt 0:00:19]} 25. Kh1 {[%emt 0:02:12]} Kh7 {[%emt 0:06:30]} 26. Nf3 {[%emt 0:05:26]} g4 {[%emt 0:09:14]} 27. Nh4 {[%emt 0:03:52]} Nxh4 {[%emt 0:00:22]} 28. gxh4 {[%emt 0:00:06]} Rf8 {[%emt 0:05:42]} 29. Qxg6+ {[%emt 0:03:58]} Kxg6 {[%emt 0:00:11]} 30. d4 {[%emt 0:00:07]} Nf4 {[%emt 0:03:25]} 31. Bxf4 {[%emt 0:02:54]} exf4 {[%emt 0:00:09]} 32. Re6+ {[%emt 0:02:48]} Rf6 {[%emt 0:00:11]} 33. Rbe2 {[%emt 0:00:40]} Raf8 {[%emt 0:02:01]} 34. h3 {[%emt 0:05:01]} Rxe6 {[%emt 0:02:21]} 35. Rxe6+ {[%emt 0:00:40]} Rf6 {[%emt 0:00:06]} 36. Re7 {[%emt 0:00:50]} b5 {[%emt 0:02:03]} 37. Kg2 {[%emt 0:01:43]} Kf5 {[%emt 0:06:17]} 38. Rh7 {[%emt 0:02:17]} Ke4 {[%emt 0:00:28]} 39. Rxh5 {[%emt 0:00:18]} gxh3+ {[%emt 0:00:20]} 40. Kxh3 {[%emt 0:00:50]} Kf3 {[%emt 0:01:13]} 41. Rg5 {[%emt 0:30:34]} Kxf2 {[%emt 0:30:27]} 42. h5 {[%emt 0:01:06]} f3 {[%emt 0:01:07]} 43. Rg6 {[%emt 0:01:10]} Rxg6 {[%emt 0:00:00]} 44. hxg6 {[%emt 0:00:00]} Ke2 {[%emt 0:00:00]} 45. g7 {[%emt 0:00:00]} f2 {[%emt 0:00:00]} 46. g8=Q {[%emt 0:00:00]} f1=Q+ 47. Kh2 Qf4+ {[%emt 0:00:00]} 48. Kh3 {[%emt 0:00:00]} Qf3+ {[%emt 0:00:00]} 49. Kh2 {[%emt 0:00:00]} Qxc3 {[%emt 0:00:00]} 50. Qe6+ {[%emt 0:00:00]} Kd3 {[%emt 0:00:00]} 51. Qxd6 {[%emt 0:00:00]} Qxd4 {[%emt 0:00:00]} 52. Qxc6 {[%emt 0:00:00]} Qxb4 {[%emt 0:00:00]} 53. Qxa6 {[%emt 0:00:00]} Qxb3 {[%emt 0:00:00]} 54. Qd6+ {[%emt 0:00:00]} Kc2 {[%emt 0:00:00]} 55. Qc5+ {[%emt 0:00:00]} Qc4 {[%emt 0:00:00]} 56. Qf5+ {[%emt 0:00:00]} Qd3 {[%emt 0:00:00]} 57. Qc5+ {[%emt 0:00:00]} Kb3 {[%emt 0:00:00]} 58. Qb6 {[%emt 0:00:00]} b4 {[%emt 0:00:00]} 59. Qe6+ {[%emt 0:00:00]} Kb2 {[%emt 0:00:00]} 60. Qb6 {[%emt 0:00:00]} b3 {[%emt 0:00:00]} 61. Qf6+ {[%emt 0:00:00]} Kb1 {[%emt 0:00:00]} 62. Qb6 {[%emt 0:00:00]} b2 {[%emt 0:04:19]} 63. Qb4 {[%emt 0:00:00]} Kc1 {[%emt 0:02:17]} 0-1

[Event "9th Amsterdam Science Park B 2019"]
[Site "Amsterdam"]
[Date "2019.07.06"]
[Round "1.8"]
[White "Rekelhof, Martin"]
[Black "Koopmans, Perry"]
[Result "1/2-1/2"]
[ECO "A45"]
[WhiteElo "1765"]
[BlackElo "1623"]
[Annotator "NA"]
[PlyCount "114"]
[EventDate "2019.07.06"]
[EventType "swiss"]
[EventCountry "NED"]
[SourceTitle "playchess.com"]
[Source "ChessBase"]
[SourceQuality "1"]
[TimeControl "40/5400+30:1800+30"]

1. d4 {[%emt 0:00:00]} Nf6 {[%emt 0:00:00]} 2. Bf4 {[%emt 0:00:00]} d5 {[%emt 0:00:00]} 3. e3 {[%emt 0:00:00]} e6 {[%emt 0:00:08]} 4. Nd2 {[%emt 0:00:39]} c5 {[%emt 0:00:50]} 5. c3 {[%emt 0:00:11]} Bd6 {[%emt 0:02:14]} 6. Bg3 {[%emt 0:00:13]} a6 {[%emt 0:01:18]} 7. Bd3 {[%emt 0:00:14]} Nc6 {[%emt 0:01:37]} 8. Ngf3 {[%emt 0:00:13]} b5 {[%emt 0:06:44]} 9. Ne5 {[%emt 0:02:44]} Bb7 {[%emt 0:01:12]} 10. a3 {[%emt 0:01:33]} c4 {[%emt 0:04:36]} 11. Bc2 {[%emt 0:00:15]} Qc7 {[%emt 0:00:16]} 12. f4 {[%emt 0:01:14]} a5 13. Bh4 {[%emt 0:06:06]} Be7 {[%emt 0:12:16]} 14. Ndf3 {[%emt 0:07:32]} h6 {[%emt 0:01:48]} 15. O-O {[%emt 0:01:52]} a4 {[%emt 0:03:24]} 16. h3 {[%emt 0:01:58]} O-O {[%emt 0:18:09]} 17. g4 {[%emt 0:08:09]} Qd8 {[%emt 0:03:48]} 18. Kh2 {[%emt 0:08:46]} Nxe5 {[%emt 0:01:34]} 19. Nxe5 {[%emt 0:06:31]} Nxg4+ {[%emt 0:05:23]} 20. Qxg4 {[%emt 0:00:22]} Bxh4 {[%emt 0:00:00]} 21. Rg1 {[%emt 0:01:56]} Bf6 {[%emt 0:03:58]} 22. Qg2 {[%emt 0:01:48]} Bxe5 {[%emt 0:00:08]} 23. fxe5 Qg5 {[%emt 0:00:01]} 24. Qxg5 {[%emt 0:01:20]} hxg5 {[%emt 0:06:39]} 25. Rxg5 {[%emt 0:03:43]} f5 {[%emt 0:00:05]} 26. exf6 {[%emt 0:01:18]} Rxf6 {[%emt 0:00:35]} 27. Rag1 {[%emt 0:03:30]} Rf7 {[%emt 0:06:31]} 28. R1g2 {[%emt 0:02:17]} Ra7 {[%emt 0:00:15]} 29. Bd1 {[%emt 0:00:59]} Bc8 {[%emt 0:05:38]} 30. Bh5 Rf5 31. h4 {[%emt 0:12:24]} Rxg5 {[%emt 0:01:29]} 32. Rxg5 {[%emt 0:02:13]} Re7 {[%emt 0:01:49]} 33. Re5 {[%emt 0:02:23]} Bd7 {[%emt 0:00:11]} 34. e4 {[%emt 0:00:54]} dxe4 {[%emt 0:02:27]} 35. Rxe4 {[%emt 0:00:07]} Bc6 {[%emt 0:00:54]} 36. Re5 {[%emt 0:01:43]} Bd5 {[%emt 0:00:35]} 37. Kg3 {[%emt 0:00:51]} Kf8 {[%emt 0:02:44]} 38. Bg6 {[%emt 0:00:38]} Rd7 {[%emt 0:02:33]} 39. Kf4 {[%emt 0:02:38]} Ke7 {[%emt 0:00:39]} 40. Kg5 {[%emt 0:00:19]} Rd8 {[%emt 0:00:41]} 41. Bh5 {[%emt 0:33:23]} Rf8 {[%emt 0:34:32]} 42. Kg6 {[%emt 0:04:08]} Rf4 {[%emt 0:00:26]} 43. Kg5 {[%emt 0:01:20]} Rf6 {[%emt 0:00:02]} 44. Be2 {[%emt 0:02:57]} Kd6 {[%emt 0:00:20]} 45. Kg4 {[%emt 0:01:31]} Rh6 {[%emt 0:03:05]} 46. h5 {[%emt 0:02:18]} Rf6 {[%emt 0:00:02]} 47. Re3 {[%emt 0:01:03]} Ke7 {[%emt 0:00:41]} 48. Bf3 {[%emt 0:02:50]} Rf5 {[%emt 0:00:00]} 49. Bxd5 {[%emt 0:00:00]} Rxd5 {[%emt 0:00:00]} 50. Re5 {[%emt 0:00:00]} Kd6 {[%emt 0:00:00]} 51. Rxd5+ {[%emt 0:00:00]} Kxd5 {[%emt 0:00:00]} 52. Kf3 {[%emt 0:00:00]} e5 {[%emt 0:00:00]} 53. dxe5 {[%emt 0:00:00]} Kxe5 {[%emt 0:00:00]} 54. Ke3 {[%emt 0:00:00]} Kf5 {[%emt 0:00:00] Kf4+ Ke5+ Ke3 Kf5} 55. Kd4 Kg5 56. Kc5 Kxh5 57. Kxb5 g5 1/2-1/2